fUST/lending_fUST_20250702
["ID","MTS","AMOUNT","RATE_DAILY","PERIOD"]
[368981191,1751423438395,-491.19440922,0.00017306,2]
[368981192,1751423438404,-460.0,0.00017406,2]
[368981193,1751423438414,-460.0,0.00017406,2]
[368981194,1751423438423,-466.10623413,0.00017406,2]
[368981195,1751423438433,-548.16,0.00017406,2]
[368981196,1751423438443,-460.0,0.00017406,2]
[368981197,1751423438452,-460.0,0.00017406,2]
[368981198,1751423438462,-460.0,0.00017406,2]
[368981199,1751423438472,-460.0,0.00017406,2]
[368981200,1751423438482,-1715.78,0.00017406,2]
[368981201,1751423438492,-460.0,0.00017406,2]
[368981202,1751423438501,-460.0,0.00017406,2]
[368981203,1751423438511,-460.0,0.00017406,2]
[368981204,1751423438520,-467.13819658,0.00017406,2]
[368981205,1751423438530,-460.0,0.00017406,2]
[368981206,1751423438540,-500.34,0.00017406,2]
[368981207,1751423438549,-460.0,0.00017406,2]
[368981208,1751423438558,-460.0,0.00017406,2]
[368981209,1751423438568,-460.0,0.00017406,2]
[368981210,1751423438577,-656.08,0.00017406,2]
[368981211,1751423438586,-460.0,0.00017407,2]
[368981212,1751423438595,-460.0,0.00017407,2]
[368981213,1751423438605,-460.0,0.00017407,2]
[368981214,1751423438617,-460.0,0.00017407,2]
[368981215,1751423438627,-300.66579233,0.00017407,2]
[368981216,1751423438637,-460.0,0.00017407,2]
[368981217,1751423438647,-460.0,0.00017407,2]
[368981218,1751423438657,-460.0,0.00017407,2]
[368981219,1751423438667,-460.0,0.00017407,2]
[368981220,1751423438676,-1371.62,0.00017407,2]
[368981221,1751423438703,-460.0,0.00017407,2]
[368981222,1751423438718,-460.0,0.00017407,2]
[368981223,1751423438728,-460.0,0.00017407,2]
[368981224,1751423438737,-737.22,0.00017407,2]
[368981225,1751423438747,-460.0,0.00017407,2]
[368981226,1751423438758,-1052.09,0.00017407,2]
[368981227,1751423438768,-460.0,0.00017407,2]
[368981228,1751423438777,-548.3432076,0.00017407,2]
[368981229,1751423438787,-1205.79,0.00017407,2]
[368981230,1751423438796,-466.11771805,0.00017408,2]
[368981231,1751423438806,-460.0,0.00017408,2]
[368981232,1751423438816,-553.01,0.00017408,2]
[368981233,1751423438826,-460.0,0.00017408,2]
[368981234,1751423438836,-460.0,0.00017408,2]
[368981235,1751423438846,-460.0,0.00017408,2]
[368981236,1751423438855,-460.0,0.00017408,2]
[368981237,1751423438866,-644.11,0.00017408,2]
[368981238,1751423438876,-460.0,0.00017408,2]
[368981239,1751423438885,-460.0,0.00017408,2]
[368981240,1751423438894,-460.0,0.00017408,2]
[368981241,1751423438903,-460.0,0.00017408,2]
[368981242,1751423438913,-460.0,0.00017408,2]
[368981243,1751423438922,-460.0,0.00017408,2]
[368981244,1751423438931,-460.0,0.00017408,2]
[368981245,1751423438941,-460.0,0.00017408,2]
[368981246,1751423438949,-460.0,0.00017408,2]
[368981247,1751423438959,-460.0,0.00017579,2]
[368981248,1751423438968,-924.7,0.00017579,2]
[368981249,1751423438977,-460.0,0.00017579,2]
[368981250,1751423438987,-466.9968311,0.0001768,2]
[368981251,1751423438996,-465.32221494,0.0001768,2]
[368981252,1751423439005,-460.0,0.0001768,2]
[368981253,1751423439014,-460.0,0.0001768,2]
[368981254,1751423439023,-460.0,0.0001768,2]
[368981255,1751423439032,-1715.78,0.0001768,2]
[368981256,1751423439042,-460.0,0.0001768,2]
[368981257,1751423439051,-460.0,0.0001768,2]
[368981258,1751423439060,-460.0,0.0001768,2]
[368981259,1751423439069,-460.0,0.0001768,2]
[368981260,1751423439079,-500.34,0.0001768,2]
[368981261,1751423439089,-460.0,0.0001768,2]
[368981262,1751423439099,-460.0,0.0001768,2]
[368981263,1751423439108,-470.59851895,0.0001768,2]
[368981264,1751423439118,-656.08,0.0001768,2]
[368981265,1751423439127,-600.96,0.00017681,2]
[368981266,1751423439137,-460.0,0.00017681,2]
[368981267,1751423439146,-460.0,0.00017681,2]
[368981268,1751423439156,-460.0,0.00017681,2]
[368981269,1751423439165,-460.0,0.00017681,2]
[368981270,1751423439174,-460.0,0.00017681,2]
[368981271,1751423439183,-460.0,0.00017681,2]
[368981272,1751423439193,-169.15,0.00017681,2]
[368981273,1751423439202,-1371.62,0.00017681,2]
[368981274,1751423439212,-460.0,0.00017681,2]
[368981275,1751423439221,-460.0,0.00017681,2]
[368981276,1751423439231,-460.0,0.00017681,2]
[368981277,1751423439240,-737.22,0.00017681,2]
[368981278,1751423439251,-460.0,0.00017681,2]
[368981279,1751423439260,-1052.09,0.00017681,2]
[368981280,1751423439270,-460.0,0.00017681,2]
[368981281,1751423439279,-1205.79,0.00017681,2]
[368981282,1751423439289,-460.0,0.00017682,2]
[368981283,1751423439299,-553.01,0.00017682,2]
[368981284,1751423439308,-553.06,0.00017682,2]
[368981285,1751423439318,-460.0,0.00017682,2]
[368981286,1751423439327,-263.39133489,0.00017682,2]
[368981287,1751423439336,-460.0,0.00017682,2]
[368981288,1751423439346,-644.11,0.00017682,2]
[368981289,1751423439356,-460.0,0.00017682,2]
[368981290,1751423439367,-460.0,0.00017682,2]
[368981291,1751423439377,-460.0,0.00017682,2]
[368981292,1751423439386,-460.0,0.00017682,2]
[368981293,1751423439395,-460.0,0.00017682,2]
[368981294,1751423439404,-460.0,0.00017682,2]
[368981295,1751423439414,-460.0,0.00017682,2]
[368981296,1751423439423,-460.0,0.00017682,2]
[368981297,1751423439433,-460.0,0.00017682,2]
[368981298,1751423439443,-460.0,0.00017853,2]
[368981299,1751423439452,-924.7,0.00017853,2]
[368981300,1751423439462,-460.0,0.00017853,2]
[368981301,1751423439471,-282.94,0.00017954,2]
[368981302,1751423439480,-460.0,0.00017954,2]
[368981303,1751423439490,-572.17764956,0.00017954,2]
[368981304,1751423439499,-1715.78,0.00017954,2]
[368981305,1751423439509,-460.0,0.00017954,2]
[368981306,1751423439519,-460.0,0.00017954,2]
[368981307,1751423439528,-460.0,0.00017954,2]
[368981308,1751423439538,-460.0,0.00017954,2]
[368981309,1751423439547,-500.34,0.00017954,2]
[368981310,1751423439556,-460.0,0.00017954,2]
[368981311,1751423439566,-460.0,0.00017954,2]
[368981313,1751423439576,-656.08,0.00017954,2]
[368981315,1751423439586,-460.0,0.00017955,2]
[368981317,1751423439595,-460.0,0.00017955,2]
[368981318,1751423439605,-487.86980608,0.00017955,2]
[368981319,1751423439615,-460.0,0.00017955,2]
[368981320,1751423439624,-460.0,0.00017955,2]
[368981321,1751423439633,-1371.62,0.00017955,2]
[368981322,1751423439645,-460.0,0.00017955,2]
[368981323,1751423439654,-460.0,0.00017955,2]
[368981324,1751423439663,-460.0,0.00017955,2]
[368981325,1751423439673,-737.22,0.00017955,2]
[368981326,1751423439683,-460.0,0.00017955,2]
[368981327,1751423439692,-1052.09,0.00017955,2]
[368981328,1751423439702,-208.7,0.00017955,2]
[368981329,1751423439715,-1205.79,0.00017955,2]
[368981330,1751423439724,-460.0,0.00017956,2]
[368981331,1751423439734,-553.01,0.00017956,2]
[368981332,1751423439743,-460.0,0.00017956,2]
[368981333,1751423439752,-460.0,0.00017956,2]
[368981334,1751423439763,-644.11,0.00017956,2]
[368981335,1751423439772,-460.0,0.00017956,2]
[368981336,1751423439783,-460.0,0.00017956,2]
[368981337,1751423439793,-460.0,0.00017956,2]
[368981338,1751423439803,-460.0,0.00017956,2]
[368981339,1751423439812,-460.0,0.00017956,2]
[368981340,1751423439821,-460.0,0.00017956,2]
[368981341,1751423439831,-460.0,0.00017956,2]
[368981342,1751423439840,-460.0,0.00017956,2]
[368981343,1751423439850,-460.0,0.00017956,2]
[368981344,1751423439859,-5180.0,0.00018013,2]
[368981345,1751423439869,-247.67033073,0.00018127,2]
[368981346,1751423439879,-924.7,0.00018127,2]
[368981347,1751423439889,-460.0,0.00018127,2]
[368981348,1751423439899,-152.10409494,0.00018176,2]
[368981350,1751423439909,-460.0,0.00018228,2]
[368981352,1751423439919,-460.0,0.00018228,2]
[368981354,1751423439929,-460.0,0.00018228,2]
[368981355,1751423439940,-460.0,0.00018228,2]
[368981356,1751423439950,-556.33,0.00018228,2]
[368981357,1751423439960,-1715.78,0.00018228,2]
[368981358,1751423439969,-250.83,0.00018228,2]
[368981359,1751423439979,-460.0,0.00018228,2]
[368981360,1751423439987,-460.0,0.00018228,2]
[368981361,1751423439997,-460.0,0.00018228,2]
[368981362,1751423440007,-460.0,0.00018228,2]
[368981363,1751423440016,-460.0,0.00018228,2]
[368981364,1751423440026,-460.0,0.00018228,2]
[368981365,1751423440036,-460.0,0.00018228,2]
[368981366,1751423440046,-500.34,0.00018228,2]
[368981367,1751423440056,-460.0,0.00018228,2]
[368981368,1751423440065,-460.0,0.00018228,2]
[368981369,1751423440075,-460.0,0.00018228,2]
[368981370,1751423440084,-460.0,0.00018228,2]
[368981371,1751423440093,-460.0,0.00018228,2]
[368981372,1751423440103,-656.08,0.00018228,2]
[368981373,1751423440114,-460.0,0.00018229,2]
[368981374,1751423440123,-496.91865234,0.00018229,2]
[368981375,1751423440132,-556.67661031,0.00018229,2]
[368981376,1751423440238,-460.0,0.00018229,2]
[368981377,1751423440266,-1371.62,0.00018229,2]
[368981378,1751423440276,-460.0,0.00018229,2]
[368981379,1751423440285,-460.0,0.00018229,2]
[368981380,1751423440295,-737.22,0.00018229,2]
[368981381,1751423440304,-460.0,0.00018229,2]
[368981382,1751423440316,-1052.09,0.00018229,2]
[368981384,1751423440325,-1205.79,0.00018229,2]
[368981386,1751423440336,-553.01,0.0001823,2]
[368981387,1751423440346,-644.11,0.0001823,2]
[368981388,1751423440355,-460.0,0.0001823,2]
[368981389,1751423440366,-460.0,0.0001823,2]
[368981390,1751423440375,-460.0,0.0001823,2]
[368981391,1751423440385,-460.0,0.0001823,2]
[368981392,1751423440394,-460.0,0.0001823,2]
[368981393,1751423440404,-460.0,0.0001823,2]
[368981394,1751423440415,-460.0,0.0001823,2]
[368981395,1751423440424,-460.0,0.0001823,2]
[368981396,1751423440434,-924.7,0.00018401,2]
[368981397,1751423440445,-460.0,0.00018401,2]
[368981398,1751423440455,-491.19440922,0.00018413,2]
[368981399,1751423440464,-476.8664841,0.00018502,2]
[368981400,1751423440474,-460.0,0.00018502,2]
[368981401,1751423440483,-460.0,0.00018502,2]
[368981402,1751423440492,-1715.78,0.00018502,2]
[368981403,1751423440502,-460.0,0.00018502,2]
[368981404,1751423440511,-460.0,0.00018502,2]
[368981405,1751423440520,-460.0,0.00018502,2]
[368981406,1751423440530,-460.0,0.00018502,2]
[368981407,1751423440539,-460.0,0.00018502,2]
[368981408,1751423440548,-460.0,0.00018502,2]
[368981409,1751423440557,-460.0,0.00018502,2]
[368981410,1751423440567,-500.34,0.00018502,2]
[368981411,1751423440576,-460.0,0.00018502,2]
[368981412,1751423440585,-460.0,0.00018502,2]
[368981413,1751423440594,-460.0,0.00018502,2]
[368981414,1751423440604,-460.0,0.00018502,2]
[368981415,1751423440614,-460.0,0.00018502,2]
[368981416,1751423440623,-656.08,0.00018502,2]
[368981417,1751423440634,-460.0,0.00018503,2]
[368981418,1751423440644,-460.0,0.00018503,2]
[368981419,1751423440654,-1371.62,0.00018503,2]
[368981420,1751423440663,-460.0,0.00018503,2]
[368981421,1751423440673,-454.5884561,0.00018503,2]
[368981422,1751423440683,-737.22,0.00018503,2]
[368981423,1751423440693,-460.0,0.00018503,2]
[368981424,1751423440703,-1052.09,0.00018503,2]
[368981425,1751423440715,-1205.79,0.00018503,2]
[368981426,1751423440724,-553.01,0.00018504,2]
[368981427,1751423440733,-644.11,0.00018504,2]
[368981428,1751423440743,-460.0,0.00018504,2]
[368981429,1751423440754,-460.0,0.00018504,2]
[368981430,1751423440764,-460.0,0.00018504,2]
[368981431,1751423440774,-460.0,0.00018504,2]
[368981432,1751423440783,-924.7,0.00018675,2]
[368981433,1751423440794,-460.0,0.00018675,2]
[368981434,1751423440804,-847.65867985,0.00018718,2]
[368981435,1751423440814,-215.04179405,0.00018718,2]
[368981436,1751423440823,-160.0,0.00018718,2]
[368981437,1751423440833,-160.0,0.00018718,2]
[368981438,1751423440843,-837.27862799,0.00018718,2]
[368981439,1751423440852,-160.0,0.00018718,2]
[368981440,1751423440862,-230.34465076,0.00018718,2]
[368981441,1751423440870,-12573.65100011,0.00018718,2]
[368981442,1751423440880,-460.0,0.00018776,2]
[368981443,1751423440889,-460.0,0.00018776,2]
[368981444,1751423440898,-1715.78,0.00018776,2]
[368981445,1751423440907,-227.58839594,0.00018776,2]
[368981446,1751423440999,-232.41160406,0.00018776,2]
[368981447,1751423441008,-460.0,0.00018776,2]
[368981448,1751423441017,-460.0,0.00018776,2]
[368981449,1751423441026,-460.0,0.00018776,2]
[368981450,1751423441035,-460.0,0.00018776,2]
[368981451,1751423441044,-460.0,0.00018776,2]
[368981452,1751423441053,-500.34,0.00018776,2]
[368981453,1751423441062,-460.0,0.00018776,2]
[368981454,1751423441072,-460.0,0.00018776,2]
[368981455,1751423441081,-460.0,0.00018776,2]
[368981456,1751423441090,-520.86,0.00018776,2]
[368981457,1751423441099,-180.68074531,0.00018776,2]
[368981458,1751423441111,-279.31925469,0.00018776,2]
[368981459,1751423441121,-656.08,0.00018776,2]
[368981460,1751423441130,-460.0,0.00018777,2]
[368981461,1751423441141,-460.0,0.00018777,2]
[368981462,1751423441150,-1371.62,0.00018777,2]
[368981463,1751423441160,-460.0,0.00018777,2]
[368981464,1751423441170,-737.22,0.00018777,2]
[368981465,1751423441179,-460.0,0.00018777,2]
[368981466,1751423441189,-1052.09,0.00018777,2]
[368981467,1751423441198,-1205.79,0.00018777,2]
[368981468,1751423441210,-553.01,0.00018778,2]
[368981469,1751423441221,-644.11,0.00018778,2]
[368981470,1751423441232,-460.0,0.00018778,2]
[368981471,1751423441243,-460.0,0.00018778,2]
[368981472,1751423441252,-460.0,0.00018778,2]
[368981473,1751423441262,-449.43368127,0.00018778,2]
[368981474,1751423441271,-3855.15635464,0.000189,2]
[368981475,1751423441281,-924.7,0.00018949,2]
[368981476,1751423441292,-460.0,0.00018949,2]
[368981477,1751423441303,-607.51,0.00019041,3]
[368981478,1751423441313,-163.09,0.0001905,2]
[368981479,1751423441324,-1715.78,0.0001905,2]
[368981480,1751423441333,-460.0,0.0001905,2]
[368981481,1751423441343,-460.0,0.0001905,2]
[368981482,1751423441352,-460.0,0.0001905,2]
[368981483,1751423441362,-529.65011169,0.0001905,2]
[368981484,1751423441371,-460.0,0.0001905,2]
[368981485,1751423441381,-460.0,0.0001905,2]
[368981486,1751423441390,-500.34,0.0001905,2]
[368981487,1751423441399,-527.38,0.0001905,2]
[368981488,1751423441409,-420.16695075,0.0001905,2]
[368981489,1751423441419,-460.0,0.0001905,2]
[368981490,1751423441429,-656.08,0.0001905,2]
[368981491,1751423441440,-526.0,0.00019051,2]
[368981492,1751423441451,-460.0,0.00019051,2]
[368981493,1751423441460,-1371.62,0.00019051,2]
[368981494,1751423441470,-460.0,0.00019051,2]
[368981495,1751423441479,-737.22,0.00019051,2]
[368981496,1751423441488,-460.0,0.00019051,2]
[368981497,1751423441498,-1052.09,0.00019051,2]
[368981498,1751423441507,-1205.79,0.00019051,2]
[368981499,1751423441516,-553.01,0.00019052,2]
[368981500,1751423441525,-644.11,0.00019052,2]
[368981501,1751423441535,-460.0,0.00019052,2]
[368981502,1751423441545,-460.0,0.00019052,2]
[368981503,1751423441554,-460.0,0.00019052,2]
[368981504,1751423441564,-176.502852,0.00019178,2]
[368981505,1751423441572,-924.7,0.00019223,2]
[368981506,1751423441582,-460.0,0.00019223,2]
[368981507,1751423441591,-1715.78,0.00019324,2]
[368981508,1751423441601,-512.93,0.00019324,2]
[368981509,1751423441611,-460.0,0.00019324,2]
[368981510,1751423441620,-460.0,0.00019324,2]
[368981511,1751423441630,-460.0,0.00019324,2]
[368981512,1751423441639,-460.0,0.00019324,2]
[368981513,1751423441648,-500.34,0.00019324,2]
[368981514,1751423441658,-460.0,0.00019324,2]
[368981515,1751423441667,-656.08,0.00019324,2]
[368981516,1751423441676,-460.0,0.00019325,2]
[368981517,1751423441685,-1371.62,0.00019325,2]
[368981518,1751423441694,-460.0,0.00019325,2]
[368981519,1751423441703,-737.22,0.00019325,2]
[368981520,1751423441716,-460.0,0.00019325,2]
[368981521,1751423441726,-1052.09,0.00019325,2]
[368981522,1751423441735,-1205.79,0.00019325,2]
[368981523,1751423441744,-553.01,0.00019326,2]
[368981524,1751423441754,-644.11,0.00019326,2]
[368981525,1751423441763,-460.0,0.00019326,2]
[368981526,1751423441772,-473.38020721,0.00019326,2]
[368981527,1751423441783,-460.0,0.00019326,2]
[368981528,1751423441792,-924.7,0.00019497,2]
[368981529,1751423441808,-460.0,0.00019497,2]
[368981530,1751423441824,-491.19440922,0.00019519,2]
[368981531,1751423441836,-1715.78,0.00019598,2]
[368981532,1751423441846,-460.0,0.00019598,2]
[368981533,1751423441855,-460.0,0.00019598,2]
[368981534,1751423441865,-460.0,0.00019598,2]
[368981535,1751423441875,-460.0,0.00019598,2]
[368981536,1751423441884,-500.34,0.00019598,2]
[368981537,1751423441893,-460.0,0.00019598,2]
[368981538,1751423441902,-656.08,0.00019598,2]
[368981539,1751423441912,-460.0,0.00019599,2]
[368981540,1751423441921,-1371.62,0.00019599,2]
[368981541,1751423441930,-460.0,0.00019599,2]
[368981542,1751423441939,-737.22,0.00019599,2]
[368981543,1751423441948,-460.0,0.00019599,2]
[368981544,1751423441957,-1052.09,0.00019599,2]
[368981545,1751423441966,-1205.79,0.00019599,2]
[368981546,1751423441975,-553.01,0.000196,2]
[368981547,1751423441984,-644.11,0.000196,2]
[368981548,1751423441993,-460.0,0.000196,2]
[368981549,1751423442002,-460.0,0.000196,2]
[368981550,1751423442011,-924.7,0.00019771,2]
[368981551,1751423442020,-460.0,0.00019771,2]
[368981552,1751423442029,-1715.78,0.00019872,2]
[368981553,1751423442038,-283.38,0.00019872,2]
[368981554,1751423442047,-518.97206586,0.00019872,2]
[368981555,1751423442056,-460.0,0.00019872,2]
[368981556,1751423442065,-500.34,0.00019872,2]
[368981557,1751423442075,-460.0,0.00019872,2]
[368981558,1751423442084,-460.0,0.00019872,2]
[368981559,1751423442093,-656.08,0.00019872,2]
[368981560,1751423442102,-460.0,0.00019873,2]
[368981561,1751423442111,-1371.62,0.00019873,2]
[368981562,1751423442120,-460.0,0.00019873,2]
[368981563,1751423442128,-737.22,0.00019873,2]
[368981564,1751423442137,-460.0,0.00019873,2]
[368981565,1751423442147,-1052.09,0.00019873,2]
[368981566,1751423442156,-1205.79,0.00019873,2]
[368981567,1751423442166,-553.01,0.00019874,2]
[368981568,1751423442175,-644.11,0.00019874,2]
[368981569,1751423442184,-460.0,0.00019874,2]
[368981570,1751423442193,-460.0,0.00019874,2]
[368981571,1751423442202,-1439.5580577,0.000199,2]
[368981572,1751423442211,-7777.0,0.0002,7]
[368981573,1751423442221,-924.7,0.00020045,2]
[368981574,1751423442231,-460.0,0.00020045,2]
[368981575,1751423442241,-179.64071856,0.00020061,2]
[368981576,1751423442249,-1715.78,0.00020146,2]
[368981577,1751423442259,-460.0,0.00020146,2]
[368981578,1751423442268,-500.34,0.00020146,2]
[368981579,1751423442279,-460.0,0.00020146,2]
[368981580,1751423442289,-460.0,0.00020146,2]
[368981581,1751423442298,-656.08,0.00020146,2]
[368981582,1751423442308,-460.0,0.00020147,2]
[368981583,1751423442317,-1371.62,0.00020147,2]
[368981584,1751423442326,-460.0,0.00020147,2]
[368981585,1751423442335,-737.22,0.00020147,2]
[368981586,1751423442345,-460.0,0.00020147,2]
[368981587,1751423442354,-1052.09,0.00020147,2]
[368981588,1751423442364,-1205.79,0.00020147,2]
[368981589,1751423442373,-553.01,0.00020148,2]
[368981590,1751423442383,-644.11,0.00020148,2]
[368981591,1751423442392,-434.77305728,0.00020148,2]
[368981592,1751423442400,-460.0,0.00020148,2]
[368981593,1751423442410,-266.598129,0.00020187,2]
[368981594,1751423442419,-924.7,0.00020319,2]
[368981595,1751423442429,-460.0,0.00020319,2]
[368981596,1751423442438,-1715.78,0.0002042,2]
[368981597,1751423442447,-460.0,0.0002042,2]
[368981598,1751423442457,-500.34,0.0002042,2]
[368981599,1751423442467,-460.0,0.0002042,2]
[368981600,1751423442476,-460.0,0.0002042,2]
[368981601,1751423442485,-656.08,0.0002042,2]
[368981602,1751423442494,-460.0,0.00020421,2]
[368981603,1751423442503,-1371.62,0.00020421,2]
[368981604,1751423442513,-460.0,0.00020421,2]
[368981606,1751423442523,-737.22,0.00020421,2]
[368981607,1751423442532,-460.0,0.00020421,2]
[368981608,1751423442541,-1052.09,0.00020421,2]
[368981609,1751423442550,-1205.79,0.00020421,2]
[368981610,1751423442560,-553.01,0.00020422,2]
[368981611,1751423442570,-644.11,0.00020422,2]
[368981612,1751423442579,-460.0,0.00020422,2]
[368981613,1751423442588,-924.7,0.00020593,2]
[368981614,1751423442598,-322.03,0.00020593,2]
[368981615,1751423442607,-178.34288353,0.00020621,2]
[368981616,1751423442617,-521.326,0.00020621,2]
[368981617,1751423442626,-491.19440922,0.00020626,2]
[368981618,1751423442635,-1715.78,0.00020694,2]
[368981619,1751423442645,-460.0,0.00020694,2]
[368981620,1751423442654,-500.34,0.00020694,2]
[368981621,1751423442664,-460.0,0.00020694,2]
[368981622,1751423442673,-460.0,0.00020694,2]
[368981623,1751423442683,-656.08,0.00020694,2]
[368981624,1751423442800,-460.0,0.00020695,2]
[368981625,1751423442809,-1371.62,0.00020695,2]
[368981626,1751423442819,-460.0,0.00020695,2]
[368981627,1751423442828,-737.22,0.00020695,2]
[368981628,1751423442838,-460.0,0.00020695,2]
[368981629,1751423442847,-1052.09,0.00020695,2]
[368981630,1751423442856,-1205.79,0.00020695,2]
[368981631,1751423442866,-553.01,0.00020696,2]
[368981632,1751423442876,-644.11,0.00020696,2]
[368981633,1751423442885,-460.0,0.00020696,2]
[368981634,1751423442894,-924.7,0.00020867,2]
[368981635,1751423442904,-1715.78,0.00020968,2]
[368981636,1751423442914,-460.0,0.00020968,2]
[368981637,1751423442924,-500.34,0.00020968,2]
[368981638,1751423442934,-585.12535192,0.00020968,2]
[368981639,1751423442944,-460.0,0.00020968,2]
[368981640,1751423442953,-656.08,0.00020968,2]
[368981641,1751423442963,-460.0,0.00020969,2]
[368981642,1751423442972,-1371.62,0.00020969,2]
[368981643,1751423442981,-460.0,0.00020969,2]
[368981644,1751423442990,-737.22,0.00020969,2]
[368981645,1751423442999,-460.0,0.00020969,2]
[368981646,1751423443009,-1052.09,0.00020969,2]
[368981647,1751423443022,-1205.79,0.00020969,2]
[368981648,1751423443042,-553.01,0.0002097,2]
[368981649,1751423443053,-644.11,0.0002097,2]
[368981650,1751423443062,-460.0,0.0002097,2]
[368981651,1751423443071,-150.0,0.00020976,2]
[368981652,1751423443080,-535.92,0.00021,2]
[368981653,1751423443090,-1439.5580577,0.00021125,2]
[368981654,1751423443100,-924.7,0.00021141,2]
[368981655,1751423443110,-1715.78,0.00021242,2]
[368981656,1751423443119,-460.0,0.00021242,2]
[368981657,1751423443129,-500.34,0.00021242,2]
[368981658,1751423443138,-460.0,0.00021242,2]
[368981659,1751423443148,-656.08,0.00021242,2]
[368981660,1751423443159,-460.0,0.00021243,2]
[368981661,1751423443169,-1371.62,0.00021243,2]
[368981662,1751423443179,-460.0,0.00021243,2]
[368981663,1751423443188,-737.22,0.00021243,2]
[368981664,1751423443198,-460.0,0.00021243,2]
[368981665,1751423443210,-1052.09,0.00021243,2]
[368981666,1751423443220,-1205.79,0.00021243,2]
[368981667,1751423443231,-553.01,0.00021244,2]
[368981668,1751423443241,-644.11,0.00021244,2]
[368981669,1751423443251,-460.0,0.00021244,2]
[368981670,1751423443260,-505.69477543,0.00021388,2]
[368981671,1751423443270,-924.7,0.00021415,2]
[368981672,1751423443279,-1715.78,0.00021516,2]
[368981673,1751423443289,-460.0,0.00021516,2]
[368981674,1751423443298,-500.34,0.00021516,2]
[368981675,1751423443308,-460.0,0.00021516,2]
[368981676,1751423443318,-656.08,0.00021516,2]
[368981677,1751423443329,-460.0,0.00021517,2]
[368981678,1751423443341,-1371.62,0.00021517,2]
[368981679,1751423443350,-601.96913339,0.00021517,2]
[368981680,1751423443360,-737.22,0.00021517,2]
[368981681,1751423443370,-460.0,0.00021517,2]
[368981682,1751423443379,-1052.09,0.00021517,2]
[368981683,1751423443388,-1205.79,0.00021517,2]
[368981684,1751423443399,-553.01,0.00021518,2]
[368981685,1751423443408,-644.11,0.00021518,2]
[368981686,1751423443418,-460.0,0.00021518,2]
[368981687,1751423443428,-924.7,0.00021689,2]
[368981688,1751423443437,-491.19440922,0.00021733,2]
[368981689,1751423443446,-1715.78,0.0002179,2]
[368981691,1751423443455,-460.0,0.0002179,2]
[368981693,1751423443464,-500.34,0.0002179,2]
[368981694,1751423443474,-465.67905533,0.0002179,2]
[368981695,1751423443484,-656.08,0.0002179,2]
[368981696,1751423443494,-460.0,0.00021791,2]
[368981697,1751423443503,-1371.62,0.00021791,2]
[368981698,1751423443512,-737.22,0.00021791,2]
[368981699,1751423443521,-460.0,0.00021791,2]
[368981700,1751423443531,-1052.09,0.00021791,2]
[368981701,1751423443540,-1205.79,0.00021791,2]